fUSD/lending_fUSD_20240602
["ID","MTS","AMOUNT","RATE_DAILY","PERIOD"]
[328414535,1717369834495,-500.0,0.0003041,4]
[328414536,1717369834505,-500.0,0.0003041,4]
[328414537,1717369834514,-500.0,0.0003041,2]
[328414538,1717369834523,-500.0,0.0003041,4]
[328414539,1717369834533,-574.26,0.0003041,4]
[328414540,1717369834541,-500.0,0.0003041,4]
[328414541,1717369834550,-500.0,0.0003041,4]
[328414542,1717369834559,-582.44,0.0003041,4]
[328414543,1717369834569,-500.0,0.0003041,4]
[328414544,1717369834578,-582.87,0.0003041,4]
[328414545,1717369834587,-500.0,0.0003041,4]
[328414546,1717369834596,-500.0,0.0003041,4]
[328414547,1717369834605,-660.89,0.0003041,4]
[328414548,1717369834615,-526.89932576,0.0003041,4]
[328414549,1717369834623,-500.0,0.0003041,4]
[328414550,1717369834632,-960.09,0.0003041,4]
[328414551,1717369834641,-545.98,0.0003041,4]
[328414552,1717369834650,-1587.67,0.0003041,4]
[328414553,1717369834660,-500.0,0.0003041,4]
[328414554,1717369834669,-1478.71,0.0003041,4]
[328414555,1717369834678,-500.0,0.0003041,4]
[328414556,1717369834687,-500.0,0.0003041,4]
[328414557,1717369834696,-523.56,0.0003041,4]
[328414558,1717369834706,-759.23,0.0003041,4]
[328414559,1717369834715,-500.0,0.0003041,4]
[328414560,1717369834724,-500.0,0.0003041,4]
[328414561,1717369834734,-500.0,0.0003041,4]
[328414562,1717369834743,-500.0,0.0003041,4]
[328414563,1717369834753,-500.0,0.0003041,4]
[328414564,1717369834763,-500.0,0.0003041,4]
[328414565,1717369834773,-500.0,0.0003041,4]
[328414566,1717369834783,-500.0,0.0003041,4]
[328414567,1717369834792,-500.0,0.0003041,4]
[328414568,1717369834801,-500.0,0.0003041,4]
[328414569,1717369834811,-500.0,0.0003041,4]
[328414570,1717369834820,-893.98,0.0003041,4]
[328414571,1717369834830,-500.0,0.0003041,4]
[328414572,1717369834840,-500.0,0.0003041,4]
[328414573,1717369834850,-951.52,0.0003041,4]
[328414574,1717369834859,-601.73,0.0003041,4]
[328414575,1717369834869,-500.0,0.0003041,4]
[328414576,1717369834878,-500.0,0.0003041,4]
[328414577,1717369834887,-934.6,0.0003041,4]
[328414578,1717369834898,-500.0,0.0003041,4]
[328414579,1717369834907,-540.1943525,0.0003041,4]
[328414580,1717369834916,-500.0,0.0003041,4]
[328414581,1717369834926,-500.0,0.0003041,4]
[328414582,1717369834936,-500.0,0.0003041,4]
[328414583,1717369834948,-500.0,0.0003041,4]
[328414584,1717369834958,-571.73,0.0003041,4]
[328414585,1717369834968,-500.0,0.0003041,4]
[328414586,1717369834979,-500.0,0.0003041,4]
[328414587,1717369834990,-500.0,0.0003041,4]
[328414588,1717369834999,-500.0,0.0003041,4]
[328414589,1717369835010,-500.0,0.0003041,4]
[328414590,1717369835020,-500.0,0.0003041,4]
[328414591,1717369835030,-500.0,0.0003041,4]
[328414592,1717369835039,-572.81,0.0003041,4]
[328414593,1717369835048,-500.0,0.0003041,4]
[328414594,1717369835059,-500.0,0.0003041,4]
[328414595,1717369835068,-500.0,0.0003041,4]
[328414596,1717369835078,-718.83,0.0003041,4]
[328414597,1717369835089,-500.0,0.0003041,4]
[328414598,1717369835100,-500.0,0.0003041,4]
[328414599,1717369835110,-800.25,0.0003041,4]
[328414600,1717369835119,-500.0,0.0003041,4]
[328414601,1717369835128,-500.0,0.0003041,4]
[328414602,1717369835138,-787.8,0.0003041,4]
[328414603,1717369835147,-872.03,0.00030411,2]
[328414604,1717369835157,-416.3,0.00030411,2]
[328414605,1717369835167,-872.03,0.00030411,2]
[328414606,1717369835178,-872.03,0.00030411,2]
[328414607,1717369835190,-872.03,0.00030411,2]
[328414608,1717369835200,-195.75,0.00030411,2]
[328414609,1717369835209,-155.0,0.00030421,4]
[328414610,1717369835220,-1415.72888,0.0003049,2]
[328414611,1717369835231,-572.51,0.00030549,2]
[328414612,1717369835243,-1415.72888,0.0003061,2]
[328414613,1717369835253,-412.45466168,0.00030638,2]
[328414614,1717369835264,-180.0,0.00030675,2]
[328414615,1717369835274,-500.0,0.00030684,4]
[328414616,1717369835394,-1499.8,0.00030684,4]
[328414617,1717369835404,-500.0,0.00030684,4]
[328414618,1717369835414,-500.0,0.00030684,4]
[328414619,1717369835425,-500.0,0.00030684,4]
[328414620,1717369835435,-500.0,0.00030684,2]
[328414621,1717369835445,-500.0,0.00030684,4]
[328414622,1717369835455,-574.26,0.00030684,4]
[328414623,1717369835465,-500.0,0.00030684,4]
[328414624,1717369835476,-500.0,0.00030684,4]
[328414625,1717369835485,-582.44,0.00030684,4]
[328414626,1717369835494,-500.0,0.00030684,4]
[328414627,1717369835503,-582.87,0.00030684,4]
[328414628,1717369835513,-500.0,0.00030684,4]
[328414629,1717369835522,-537.72278188,0.00030684,4]
[328414630,1717369835532,-660.89,0.00030684,4]
[328414631,1717369835542,-500.0,0.00030684,4]
[328414632,1717369835552,-960.09,0.00030684,4]
[328414633,1717369835561,-545.98,0.00030684,4]
[328414634,1717369835571,-1587.67,0.00030684,4]
[328414635,1717369835581,-500.0,0.00030684,4]
[328414636,1717369835591,-1478.71,0.00030684,4]
[328414637,1717369835601,-500.0,0.00030684,4]
[328414638,1717369835611,-500.0,0.00030684,4]
[328414639,1717369835622,-523.56,0.00030684,4]
[328414640,1717369835631,-759.23,0.00030684,4]
[328414641,1717369835642,-500.0,0.00030684,4]
[328414642,1717369835652,-500.0,0.00030684,4]
[328414643,1717369835661,-500.0,0.00030684,4]
[328414644,1717369835671,-500.0,0.00030684,4]
[328414645,1717369835682,-386.00357235,0.00030684,4]
[328414646,1717369835693,-500.0,0.00030684,4]
[328414647,1717369835703,-500.0,0.00030684,4]
[328414648,1717369835712,-625.47201784,0.00030684,4]
[328414649,1717369835723,-500.0,0.00030684,4]
[328414650,1717369835733,-500.0,0.00030684,4]
[328414651,1717369835742,-500.0,0.00030684,4]
[328414652,1717369835753,-893.98,0.00030684,4]
[328414653,1717369835763,-500.0,0.00030684,4]
[328414654,1717369835772,-500.0,0.00030684,4]
[328414655,1717369835782,-951.52,0.00030684,4]
[328414656,1717369835792,-601.73,0.00030684,4]
[328414657,1717369835801,-500.0,0.00030684,4]
[328414658,1717369835811,-500.0,0.00030684,4]
[328414659,1717369835820,-934.6,0.00030684,4]
[328414660,1717369835830,-500.0,0.00030684,4]
[328414661,1717369835839,-500.0,0.00030684,4]
[328414662,1717369835849,-500.0,0.00030684,4]
[328414663,1717369835858,-500.0,0.00030684,4]
[328414664,1717369835868,-500.0,0.00030684,4]
[328414665,1717369835878,-571.73,0.00030684,4]
[328414666,1717369835888,-500.0,0.00030684,4]
[328414667,1717369835899,-523.1159359,0.00030684,4]
[328414668,1717369835910,-500.0,0.00030684,4]
[328414669,1717369835920,-500.0,0.00030684,4]
[328414670,1717369835929,-500.0,0.00030684,4]
[328414671,1717369835943,-500.0,0.00030684,4]
[328414672,1717369835953,-500.0,0.00030684,4]
[328414673,1717369835962,-572.81,0.00030684,4]
[328414674,1717369835972,-510.29856561,0.00030684,4]
[328414675,1717369835982,-500.0,0.00030684,4]
[328414676,1717369835991,-500.0,0.00030684,4]
[328414677,1717369836000,-718.83,0.00030684,4]
[328414678,1717369836009,-500.0,0.00030684,4]
[328414679,1717369836021,-500.0,0.00030684,4]
[328414680,1717369836031,-800.25,0.00030684,4]
[328414681,1717369836040,-500.0,0.00030684,4]
[328414682,1717369836049,-787.8,0.00030684,4]
[328414683,1717369836058,-216.41346537,0.00030689,2]
[328414684,1717369836067,-2000.0,0.000307,4]
[328414685,1717369836076,-166.03192874,0.00030707,7]
[328414686,1717369836085,-158.46460464,0.00030721,7]
[328414687,1717369836095,-218.05940527,0.0003074,7]
[328414688,1717369836104,-166.03192874,0.00030755,7]
[328414689,1717369836114,-1689.779429,0.0003078,11]
[328414690,1717369836123,-166.03192874,0.00030799,7]
[328414691,1717369836133,-2000.0,0.000308,2]
[328414692,1717369836142,-200.0,0.000308,2]
[328414693,1717369836152,-2000.0,0.000308,2]
[328414694,1717369836161,-200.0,0.000308,2]
[328414695,1717369836171,-2000.0,0.000308,2]
[328414696,1717369836180,-200.0,0.000308,2]
[328414697,1717369836190,-1000.0,0.000308,11]
[328414698,1717369836200,-152.15130497,0.00030802,7]
[328414699,1717369836209,-1000.0,0.0003082,11]
[328414700,1717369836219,-207.71,0.00030822,2]
[328414701,1717369836228,-300.75,0.00030822,2]
[328414702,1717369836237,-421.16,0.00030822,2]
[328414703,1717369836247,-218.05940527,0.00030822,7]
[328414704,1717369836256,-1000.0,0.0003084,11]
[328414705,1717369836265,-1000.0,0.0003086,11]
[328414706,1717369836275,-218.05940527,0.00030865,7]
[328414707,1717369836285,-1000.0,0.0003088,11]
[328414708,1717369836293,-1000.0,0.000309,11]
[328414709,1717369836303,-158.17,0.00030905,2]
[328414710,1717369836312,-158.94268827,0.00030915,7]
[328414711,1717369836322,-331.66716166,0.00030919,2]
[328414712,1717369836331,-1415.72889,0.0003092,2]
[328414713,1717369836341,-1000.0,0.0003092,11]
[328414714,1717369836351,-1000.0,0.0003094,11]
[328414715,1717369836360,-28048.51466405,0.00030942,15]
[328414716,1717369836369,-500.0,0.00030958,4]
[328414717,1717369836378,-1499.8,0.00030958,4]
[328414718,1717369836387,-500.0,0.00030958,4]
[328414719,1717369836397,-500.0,0.00030958,4]
[328414720,1717369836407,-500.0,0.00030958,4]
[328414721,1717369836416,-500.0,0.00030958,2]
[328414722,1717369836425,-222.56848319,0.00030958,4]
[328414723,1717369836435,-574.26,0.00030958,4]
[328414724,1717369836444,-500.0,0.00030958,4]
[328414725,1717369836453,-500.0,0.00030958,4]
[328414726,1717369836463,-582.44,0.00030958,4]
[328414727,1717369836472,-500.0,0.00030958,4]
[328414728,1717369836481,-582.87,0.00030958,4]
[328414729,1717369836491,-500.0,0.00030958,4]
[328414730,1717369836500,-660.89,0.00030958,4]
[328414731,1717369836510,-500.0,0.00030958,4]
[328414732,1717369836519,-960.09,0.00030958,4]
[328414733,1717369836528,-545.98,0.00030958,4]
[328414734,1717369836537,-1587.67,0.00030958,4]
[328414735,1717369836546,-500.0,0.00030958,4]
[328414736,1717369836556,-1478.71,0.00030958,4]
[328414737,1717369836565,-500.0,0.00030958,4]
[328414738,1717369836574,-500.0,0.00030958,4]
[328414739,1717369836583,-523.56,0.00030958,4]
[328414740,1717369836592,-759.23,0.00030958,4]
[328414741,1717369836602,-500.0,0.00030958,4]
[328414742,1717369836611,-500.0,0.00030958,4]
[328414743,1717369836621,-500.0,0.00030958,4]
[328414744,1717369836630,-500.0,0.00030958,4]
[328414745,1717369836639,-395.8982282,0.00030958,4]
[328414746,1717369836648,-500.0,0.00030958,4]
[328414747,1717369836657,-500.0,0.00030958,4]
[328414748,1717369836667,-500.0,0.00030958,4]
[328414749,1717369836676,-500.0,0.00030958,4]
[328414750,1717369836685,-893.98,0.00030958,4]
[328414751,1717369836694,-500.0,0.00030958,4]
[328414752,1717369836703,-500.0,0.00030958,4]
[328414753,1717369836712,-951.52,0.00030958,4]
[328414754,1717369836721,-601.73,0.00030958,4]
[328414755,1717369836731,-500.0,0.00030958,4]
[328414756,1717369836740,-934.6,0.00030958,4]
[328414757,1717369836749,-620.55145221,0.00030958,4]
[328414758,1717369836759,-500.0,0.00030958,4]
[328414759,1717369836768,-500.0,0.00030958,4]
[328414760,1717369836778,-500.0,0.00030958,4]
[328414761,1717369836788,-500.0,0.00030958,4]
[328414762,1717369836797,-571.73,0.00030958,4]
[328414763,1717369836806,-500.0,0.00030958,4]
[328414764,1717369836815,-547.38181927,0.00030958,4]
[328414765,1717369836824,-500.0,0.00030958,4]
[328414766,1717369836834,-500.0,0.00030958,4]
[328414767,1717369836843,-500.0,0.00030958,4]
[328414768,1717369836852,-500.0,0.00030958,4]
[328414769,1717369836862,-572.81,0.00030958,4]
[328414770,1717369836871,-500.0,0.00030958,4]
[328414771,1717369836881,-531.88953691,0.00030958,4]
[328414772,1717369836889,-718.83,0.00030958,4]
[328414773,1717369836898,-500.0,0.00030958,4]
[328414774,1717369836907,-500.0,0.00030958,4]
[328414775,1717369836916,-800.25,0.00030958,4]
[328414776,1717369836925,-500.0,0.00030958,4]
[328414777,1717369836934,-1000.0,0.0003096,11]
[328414778,1717369836947,-218.05940527,0.00030967,7]
[328414779,1717369836956,-1000.0,0.0003098,11]
[328414780,1717369836966,-158.40587604,0.00030991,7]
[328414781,1717369836974,-155.0,0.00030998,4]
[328414782,1717369836986,-177.06048771,0.00030999,4]
[328414783,1717369836995,-1400.0,0.00031,2]
[328414784,1717369837004,-150.0,0.00031,2]
[328414785,1717369837015,-500.0,0.00031,2]
[328414786,1717369837024,-1000.0,0.00031,11]
[328414787,1717369837035,-155.0,0.00031,2]
[328414788,1717369837045,-453.46403564,0.00031,7]
[328414789,1717369837054,-1615.10694581,0.00031,4]
[328414790,1717369837063,-5000.0,0.00031,3]
[328414791,1717369837072,-90050.7845313,0.00031,2]
[328414792,1717369837581,-642.3977412,0.00031,2]
[328414793,1717369837593,-456.76620795,0.00031,2]
[328414794,1717369837604,-850.0,0.00031,2]
[328414795,1717369837615,-300.6296171,0.00031,2]
[328414796,1717369837626,-997.8724334,0.00031,2]
[328414797,1717369837637,-6577.77813554,0.00031,2]
[328414798,1717369837677,-397.56791311,0.0003041,2]
[328414822,1717369839258,-102.43208689,0.0003041,2]
[328414823,1717369839272,-632.91736503,0.0003041,2]
[328414824,1717369839291,-787.8,0.00030958,4]
[328414825,1717369839310,-6333.65695479,0.00031,2]
[328414826,1717369839329,-2000.0,0.00031,2]
[328414827,1717369839341,-200.0,0.00031,2]
[328414828,1717369839358,-246.0,0.00031008,5]
[328414829,1717369839373,-151.48,0.00031016,2]
[328414830,1717369839389,-155.6044064,0.00031019,7]
[328414831,1717369839402,-158.17,0.00031032,2]
[328414832,1717369839420,-155.0,0.00031039,2]
[328414833,1717369839434,-323.37629132,0.00031041,4]
[328414834,1717369839449,-500.0,0.00031042,4]
[328414835,1717369839463,-500.0,0.00031042,4]
[328414836,1717369839479,-500.0,0.00031042,4]
[328414837,1717369839494,-500.0,0.00031042,4]
[328414838,1717369839509,-500.0,0.00031042,4]
[328414839,1717369839524,-500.0,0.00031042,4]
[328414840,1717369839539,-500.0,0.00031042,4]
[328414841,1717369839554,-500.0,0.00031042,4]
[328414842,1717369839568,-758.1,0.00031042,4]
[328414843,1717369839583,-500.0,0.00031042,4]
[328414844,1717369839598,-500.0,0.00031042,4]
[328414845,1717369839613,-871.03,0.00031042,4]
[328414846,1717369839627,-1117.61,0.00031042,4]
[328414847,1717369839642,-500.0,0.00031042,4]
[328414848,1717369839657,-825.68,0.00031042,4]
[328414849,1717369839672,-833.3,0.00031042,4]
[328414850,1717369839688,-870.54,0.00031042,4]
[328414851,1717369839703,-696.98,0.00031042,4]
[328414852,1717369839718,-1196.37,0.00031042,4]
[328414853,1717369839733,-1832.48,0.00031042,4]
[328414854,1717369839748,-500.0,0.00031042,4]
[328414855,1717369839763,-500.0,0.00031042,4]
[328414856,1717369839778,-500.0,0.00031042,4]
[328414857,1717369839794,-500.0,0.00031042,4]
[328414858,1717369839809,-500.0,0.00031042,4]
[328414859,1717369839824,-503.12168616,0.00031042,2]
[328414860,1717369839839,-586.83,0.00031042,4]
[328414861,1717369839854,-500.0,0.00031042,4]
[328414862,1717369839869,-502.78,0.00031042,4]
[328414863,1717369839884,-500.0,0.00031042,2]
[328414864,1717369839900,-19475.06,0.00031042,4]
[328414865,1717369839915,-251.23012888,0.00031042,4]
[328414866,1717369839930,-156.82039289,0.00031042,4]
[328414867,1717369839951,-562.1680965,0.00031042,4]
[328414868,1717369839966,-1243.95829621,0.00031042,4]
[328414869,1717369839982,-158.14562434,0.00031042,4]
[328414870,1717369839997,-177.05578971,0.00031042,4]
[328414871,1717369840012,-198.028393,0.00031042,4]
[328414872,1717369840029,-417.45255306,0.00031042,4]
[328414873,1717369840044,-158.70467793,0.00031042,4]
[328414874,1717369840058,-413.57156892,0.00031042,4]
[328414875,1717369840073,-158.07168852,0.00031042,4]
[328414876,1717369840089,-195.42376414,0.00031042,4]
[328414877,1717369840104,-227.46936393,0.00031042,4]
[328414878,1717369840119,-1274.3184443,0.00031042,4]
[328414879,1717369840134,-11965.51997061,0.00031042,4]
[328414880,1717369840148,-268.32530534,0.00031042,4]
[328414881,1717369840164,-327.82411917,0.00031042,4]
[328414882,1717369840178,-203.79297903,0.00031042,4]
[328414883,1717369840193,-5000.0,0.00031042,7]
[328414885,1717369840207,-155.92992075,0.00031042,4]
[328414886,1717369840221,-155.0,0.00031042,4]
[328414887,1717369840235,-433.83622735,0.00031042,4]
[328414888,1717369840250,-155.0,0.00031042,4]
[328414889,1717369840265,-212.53473187,0.00031042,4]
[328414890,1717369840274,-769.15230861,0.00031042,4]
[328414891,1717369840284,-200.1270342,0.00031042,4]
[328414892,1717369840293,-1419.65507534,0.00031042,14]
[328414893,1717369840303,-266.46420594,0.00031042,4]
[328414894,1717369840312,-1768.06809906,0.00031042,4]
[328414895,1717369840547,-634.6549469,0.00031043,4]
[328414896,1717369840562,-1383.46980156,0.00031043,4]
[328414897,1717369840572,-151.0,0.00031055,4]
[328414898,1717369840581,-443.0,0.00031079,5]
[328414899,1717369840590,-166.66666666,0.00031082,7]
[328414900,1717369840600,-150.0,0.00031083,2]
[328414901,1717369840609,-150.0,0.00031083,2]
[328414902,1717369840619,-150.0,0.00031083,2]
[328414903,1717369840628,-150.0,0.00031083,2]
[328414904,1717369840637,-150.0,0.00031083,2]
[328414905,1717369840647,-150.0,0.00031083,2]
[328414906,1717369840656,-150.0,0.00031083,2]
[328414907,1717369840665,-150.0,0.00031083,2]
[328414908,1717369840675,-198.04569,0.00031083,2]
[328414909,1717369840684,-410.73900561,0.00031099,2]
[328414910,1717369840694,-469.52391038,0.00031108,2]
[328414911,1717369840714,-1530.47608962,0.00031108,2]
[328414912,1717369840724,-200.0,0.00031108,2]
[328414913,1717369840733,-2000.0,0.00031108,2]
[328414914,1717369840742,-200.0,0.00031108,2]
[328414915,1717369840752,-2000.0,0.00031108,2]
[328414916,1717369840762,-200.0,0.00031108,2]
[328414917,1717369840771,-150.0,0.0003115,2]
[328414918,1717369840780,-300.0,0.00031156,2]
[328414919,1717369840790,-150.0,0.00031185,2]
[328414920,1717369840800,-150.0,0.0003119,2]
[328414921,1717369840809,-154.91190829,0.00031192,2]
[328414922,1717369840843,-145.08809171,0.00031192,2]
[328414923,1717369840852,-1529.38635763,0.00031193,15]
[328414924,1717369840876,-2504.22902676,0.00031193,15]
[328414925,1717369841447,-840.71707407,0.00031193,15]
[328414926,1717369841458,-2098.90380035,0.00031193,15]
[328414927,1717369841469,-2723.68358874,0.00031193,15]
[328414928,1717369841532,-513.48021401,0.00031193,15]
[328414929,1717369841543,-1333.99259996,0.00031193,15]
[328414930,1717369842513,-406.7734298,0.00031042,4]
[328414931,1717369842525,-93.2265702,0.00031042,4]
[328414932,1717369842536,-217.4934298,0.00031042,2]
[328414935,1717369842731,-285.74935639,0.00031042,2]
[328414936,1717369842741,-16504.12200252,0.00031193,15]
[328414937,1717369842753,-218.05940527,0.00031208,7]
[328414938,1717369842763,-1312.63970572,0.0003121,2]
[328414939,1717369842772,-5.78593012,0.0003122,2]
[328414946,1717369843466,-642.56,0.00030136,4]
[328414947,1717369843477,-294.21406988,0.0003122,2]
[328414948,1717369843487,-150.0,0.00031221,2]
[328414949,1717369843496,-300.0,0.00031224,2]
[328414950,1717369843506,-1415.72888,0.0003123,2]
[328414951,1717369843516,-150.0,0.00031231,2]
[328414952,1717369843526,-500.0,0.00031232,4]
[328414953,1717369843536,-1499.8,0.00031232,4]
[328414954,1717369843545,-487.81522461,0.00031232,4]
[328414955,1717369843555,-500.0,0.00031232,4]
[328414956,1717369843565,-500.0,0.00031232,4]
[328414957,1717369843574,-500.0,0.00031232,2]
[328414958,1717369843584,-574.26,0.00031232,4]
[328414959,1717369843594,-500.0,0.00031232,4]
[328414960,1717369843604,-500.0,0.00031232,4]
[328414961,1717369843614,-582.44,0.00031232,4]
[328414962,1717369843624,-500.0,0.00031232,4]
[328414963,1717369843634,-582.87,0.00031232,4]
[328414964,1717369843644,-388.21511958,0.00031232,4]
[328414965,1717369843654,-660.89,0.00031232,4]
[328414966,1717369843664,-500.0,0.00031232,4]
[328414967,1717369843674,-960.09,0.00031232,4]
[328414968,1717369843684,-545.98,0.00031232,4]
[328414969,1717369843694,-1587.67,0.00031232,4]
[328414970,1717369843704,-500.0,0.00031232,4]
[328414971,1717369843716,-1478.71,0.00031232,4]
[328414972,1717369843727,-500.0,0.00031232,4]
[328414973,1717369843737,-500.0,0.00031232,4]
[328414974,1717369843747,-523.56,0.00031232,4]
[328414975,1717369843756,-759.23,0.00031232,4]
[328414976,1717369843766,-535.58083197,0.00031232,4]
[328414977,1717369843776,-500.0,0.00031232,4]
[328414978,1717369843786,-500.0,0.00031232,4]
[328414979,1717369843795,-500.0,0.00031232,4]
[328414980,1717369843805,-156.63620814,0.00031232,4]
[328414981,1717369843815,-500.0,0.00031232,4]
[328414982,1717369843824,-500.0,0.00031232,4]
[328414983,1717369843834,-500.0,0.00031232,4]
[328414984,1717369843844,-893.98,0.00031232,4]
[328414985,1717369843853,-500.0,0.00031232,4]
[328414986,1717369843863,-500.0,0.00031232,4]
[328414987,1717369843873,-951.52,0.00031232,4]
[328414988,1717369843882,-601.73,0.00031232,4]
[328414989,1717369843892,-500.0,0.00031232,4]
[328414990,1717369843902,-934.6,0.00031232,4]
[328414991,1717369843912,-500.0,0.00031232,4]
[328414992,1717369843922,-500.0,0.00031232,4]
[328414993,1717369843932,-500.0,0.00031232,4]
[328414994,1717369843949,-312.94642988,0.00031232,4]
[328414995,1717369843959,-571.73,0.00031232,4]
[328414996,1717369843968,-500.0,0.00031232,4]
[328414997,1717369843979,-500.0,0.00031232,4]
[328414998,1717369843988,-500.0,0.00031232,4]
[328414999,1717369843998,-500.0,0.00031232,4]
[328415000,1717369844010,-500.0,0.00031232,4]
[328415001,1717369844022,-572.81,0.00031232,4]
[328415002,1717369844031,-500.0,0.00031232,4]
[328415003,1717369844041,-718.83,0.00031232,4]
[328415004,1717369844052,-525.33412689,0.00031232,4]
[328415005,1717369844062,-500.0,0.00031232,4]
[328415006,1717369844071,-800.25,0.00031232,4]
[328415007,1717369844081,-500.0,0.00031232,4]
[328415008,1717369844091,-787.8,0.00031232,4]
[328415009,1717369844101,-150.0,0.00031241,2]
[328415010,1717369844111,-150.0,0.00031245,2]
[328415011,1717369844120,-150.0,0.00031247,2]
[328415012,1717369844130,-150.0,0.00031253,2]
[328415013,1717369844139,-150.0,0.00031262,2]
[328415014,1717369844149,-150.0,0.00031266,2]
[328415015,1717369844159,-155.6044064,0.00031269,7]
[328415016,1717369844169,-155.96669712,0.00031294,7]
[328415017,1717369844178,-186.6744388,0.00031295,2]
[328415018,1717369844188,-1225.3508,0.00031297,2]
[328415019,1717369844197,-1000.0,0.000313,11]
[328415020,1717369844206,-155.0,0.000313,4]
[328415021,1717369844215,-487.0,0.000313,16]
[328415022,1717369844225,-345.0,0.000313,4]
[328415023,1717369844236,-150.0,0.000313,4]
[328415024,1717369844245,-190.0,0.000313,16]
[328415025,1717369844254,-150.0,0.000313,7]
[328415026,1717369844264,-1131.15880292,0.0003131,2]
[328415027,1717369844273,-200.0,0.0003131,2]
[328415028,1717369844285,-500.0,0.00031316,4]
[328415029,1717369844296,-500.0,0.00031316,4]
[328415030,1717369844305,-543.37910491,0.00031316,4]
[328415031,1717369844317,-500.0,0.00031316,4]
[328415032,1717369844327,-500.0,0.00031316,4]
[328415033,1717369844336,-500.0,0.00031316,4]
[328415034,1717369844346,-500.0,0.00031316,4]
[328415035,1717369844356,-500.0,0.00031316,4]
[328415036,1717369844366,-758.1,0.00031316,4]
[328415037,1717369844376,-500.0,0.00031316,4]
[328415038,1717369844387,-500.0,0.00031316,4]
[328415039,1717369844396,-871.03,0.00031316,4]
[328415040,1717369844580,-1117.61,0.00031316,4]
[328415041,1717369844600,-500.0,0.00031316,4]
[328415042,1717369844610,-825.68,0.00031316,4]
[328415043,1717369844619,-833.3,0.00031316,4]
[328415044,1717369844630,-870.54,0.00031316,4]
[328415045,1717369844640,-696.98,0.00031316,4]
[328415046,1717369844650,-1196.37,0.00031316,4]
[328415047,1717369844659,-1832.48,0.00031316,4]
[328415048,1717369844670,-500.0,0.00031316,4]
[328415049,1717369844679,-500.0,0.00031316,4]
[328415050,1717369844688,-500.0,0.00031316,4]
[328415051,1717369844698,-500.0,0.00031316,4]
[328415052,1717369844708,-500.0,0.00031316,4]
[328415053,1717369844718,-586.83,0.00031316,4]
[328415054,1717369844728,-500.0,0.00031316,4]
[328415055,1717369844737,-502.78,0.00031316,4]
[328415056,1717369844748,-500.0,0.00031316,2]
[328415057,1717369844757,-19475.06,0.00031316,4]
[328415058,1717369844767,-500.0,0.00031316,4]
[328415059,1717369844776,-157.363341,0.00031318,7]
[328415060,1717369844786,-900.0,0.0003132,2]
[328415061,1717369844795,-900.0,0.0003132,2]
[328415062,1717369844804,-900.0,0.0003132,2]
[328415063,1717369844813,-900.0,0.0003132,2]
[328415064,1717369844823,-900.0,0.0003132,2]
[328415065,1717369844833,-900.0,0.0003132,2]
[328415066,1717369844842,-900.0,0.0003132,2]